bitfinex/quotes_SOLUSD_20250330
["timestamp","ask_amount","ask_price","bid_price","bid_amount"]
[1743328511601,68.23024363,126.29,126.28,216.22]
[1743328514113,68.23024363,126.29,126.27,0.063]
[1743328514293,60.28204363,126.28,126.27,0.063]
[1743328515001,60.28204363,126.28,126.26,135.443]
[1743328515208,61.87354363,126.27,126.26,135.443]
[1743328515503,69.79304363,126.27,126.26,135.443]
[1743328516592,69.79304363,126.27,126.26,0.063]
[1743328521518,77.74204363,126.27,126.26,0.063]
[1743328524320,69.79304363,126.27,126.26,0.063]
[1743328524705,12.60204363,126.27,126.26,0.063]
[1743328526710,12.60204363,126.27,126.26,135.443]
[1743328530430,12.63204363,126.27,126.26,135.443]
[1743328533024,20.55154363,126.27,126.26,135.443]
[1743328533212,68.23154363,126.27,126.26,135.443]
[1743328538542,68.23154363,126.27,126.26,0.063]
[1743328547563,60.31204363,126.27,126.26,0.063]
[1743328550778,68.23154363,126.27,126.26,0.063]
[1743328552451,60.31204363,126.27,126.26,0.063]
[1743328561866,60.31204363,126.27,126.26,135.443]
[1743328570991,12.63204363,126.27,126.26,143.3631]
[1743328571188,0.03,126.27,126.26,143.3631]
[1743328573508,0.03,126.27,126.26,242.85274886]
[1743328575926,0.03,126.27,126.26,224.2031]
[1743328576102,0.03,126.27,126.26,216.283]
[1743328576103,12.63204363,126.27,126.26,216.283]
[1743328577679,12.63204363,126.27,126.26,224.2031]
[1743328577879,0.03,126.27,126.26,224.2031]
[1743328582993,0.03,126.27,126.26,242.85274886]
[1743328585621,0.03,126.27,126.26,243.137072]
[1743328588239,0.03,126.29,126.28,143.2689]
[1743328590208,0.03,126.29,126.28,242.75854886]
[1743328590704,0.03,126.29,126.28,244.547172]
[1743328593220,0.0001,126.29,126.28,244.83149514]
[1743328594114,0.03,126.31,126.3,99.773872]
[1743328594305,0.03,126.31,126.3,106.413872]
[1743328595528,0.03,126.31,126.3,114.331472]
[1743328599920,0.03,126.32,126.31,81.09422314]
[1743328600737,0.03,126.32,126.31,89.01122314]
[1743328603343,0.03,126.32,126.31,88.7269]
[1743328603649,0.03,126.32,126.31,107.37654886]
[1743328605826,12.60204363,126.33,126.32,135.32]
[1743328608050,12.60204363,126.33,126.32,143.2364]
[1743328611322,12.60204363,126.33,126.32,135.32]
[1743328612231,12.63204363,126.33,126.32,135.32]
[1743328617049,60.30204363,126.33,126.32,135.32]
[1743328618850,68.21774363,126.33,126.32,135.32]
[1743328619253,60.30204363,126.33,126.32,135.32]
[1743328632861,68.25104363,126.33,126.32,135.32]
[1743328633062,60.30204363,126.33,126.32,135.32]
[1743328638666,60.30204363,126.33,126.31,80.8729]
[1743328638667,68.21774363,126.33,126.31,80.8729]
[1743328638969,60.27204363,126.32,126.31,80.8729]
[1743328639754,68.18844363,126.32,126.31,80.8729]
[1743328642969,60.27204363,126.32,126.31,80.8729]
[1743328643154,12.60204363,126.32,126.31,80.8729]
[1743328643353,12.60204363,126.32,126.31,216.1929]
[1743328643554,12.60204363,126.32,126.31,224.1099]
[1743328644072,12.63204363,126.33,126.31,224.1099]
[1743328645762,0.03,126.33,126.31,224.1099]
[1743328652880,0.03,126.33,126.31,230.7499]
[1743328661181,0.03,126.33,126.32,18.64964886]
[1743328661381,13.96277448,126.35,126.33,135.29]
[1743328661582,13.96277448,126.35,126.33,217.7445]
[1743328662685,13.96277448,126.35,126.34,7.9151]
[1743328664491,13.96277448,126.35,126.34,224.015]
[1743328666383,13.96277448,126.35,126.34,216.0999]
[1743328672684,21.87727448,126.35,126.34,216.0999]
[1743328672901,69.54727448,126.35,126.34,216.0999]
[1743328676094,69.54727448,126.35,126.34,80.8099]
[1743328676299,1.6101,126.34,126.33,0.063]
[1743328676480,67.92974886,126.34,126.33,0.063]
[1743328676798,75.84484886,126.34,126.33,0.063]
[1743328676985,75.84484886,126.34,126.33,0.0001]
[1743328676986,99.67484886,126.34,126.33,0.0001]
[1743328677186,86.31964886,126.32,126.31,0.063]
[1743328678392,94.23604886,126.32,126.31,0.063]
[1743328679901,94.37821043,126.32,126.31,0.063]
[1743328687807,217.356,126.33,126.31,0.063]
[1743328688381,209.44,126.33,126.31,0.063]
[1743328689524,20.0,126.32,126.31,0.063]
[1743328690817,67.67,126.32,126.31,0.063]
[1743328693227,75.5864,126.32,126.31,0.063]
[1743328695723,67.67,126.32,126.31,0.063]
[1743328696521,75.5864,126.32,126.31,0.063]
[1743328700529,67.67,126.32,126.31,0.063]
[1743328701804,67.67,126.32,126.31,135.353]
[1743328705527,20.0,126.32,126.31,135.353]
[1743328715452,67.67,126.32,126.31,135.353]
[1743328719229,75.5864,126.32,126.31,135.353]
[1743328719537,67.67,126.32,126.31,135.353]
[1743328720840,75.5864,126.32,126.31,135.353]
[1743328723150,75.5864,126.32,126.31,0.063]
[1743328730750,0.03,126.33,126.31,0.063]
[1743328731327,20.0,126.32,126.31,0.063]
[1743328731531,55.6159,126.33,126.31,0.063]
[1743328741164,47.7,126.33,126.31,0.063]
[1743328741360,47.7,126.33,126.31,135.353]
[1743328742269,0.03,126.33,126.31,135.353]
[1743328755079,67.67,126.32,126.31,135.353]
[1743328757188,75.5864,126.32,126.31,135.353]
[1743328758375,75.5864,126.32,126.31,0.063]
[1743328770404,67.67,126.32,126.31,0.063]
[1743328770579,7.946,126.33,126.31,216.1629]
[1743328770580,0.03,126.33,126.31,216.1629]
[1743328771694,0.03,126.33,126.32,7.9164]
[1743328773610,0.03,126.33,126.32,143.2064]
[1743328779045,0.03,126.33,126.32,135.29]
[1743328779191,20.03,126.33,126.32,135.29]
[1743328779890,67.7,126.33,126.32,135.29]
[1743328781203,20.03,126.33,126.32,135.29]
[1743328784720,20.03,126.33,126.31,216.1629]
[1743328795027,27.974,126.33,126.31,216.1629]
[1743328795236,20.03,126.33,126.31,216.1629]
[1743328809146,47.67,126.32,126.31,80.8729]
[1743328809535,47.67,126.32,126.31,0.063]
[1743328811839,7.9164,126.32,126.31,0.063]
[1743328812043,55.5864,126.32,126.31,0.063]
[1743328813824,20.0,126.29,126.27,80.8099]
[1743328814131,67.67,126.29,126.27,80.8099]
[1743328815641,75.5883,126.29,126.27,80.8099]
[1743328822354,0.03,126.33,126.28,8.1925]
[1743328822548,0.03,126.33,126.28,224.2924]
[1743328822735,0.03,126.31,126.28,224.2924]
[1743328826858,0.03,126.31,126.28,232.2111]
[1743328827652,0.03,126.31,126.28,224.2924]
[1743328829152,0.03,126.31,126.28,232.2111]
[1743328833751,0.03,126.31,126.28,224.2924]
[1743328835148,0.03,126.31,126.28,232.2111]
[1743328836543,0.03,126.31,126.28,224.2924]
[1743328836957,0.03,126.31,126.28,222.7799]
[1743328839158,0.03,126.31,126.28,216.0999]
[1743328845662,0.03,126.31,126.28,216.1629]
[1743328847448,0.03,126.31,126.28,224.0817]
[1743328848673,0.03,126.31,126.28,216.1629]
[1743328853572,0.03,126.31,126.28,0.063]
[1743328853754,67.67,126.29,126.28,0.063]
[1743328853954,73.9271,126.29,126.28,0.063]
[1743328854459,92.57674886,126.29,126.28,0.063]
[1743328855463,92.57674886,126.29,126.28,0.0001]
[1743328855464,100.49494886,126.29,126.28,0.0001]
[1743328855667,132.26894886,126.29,126.28,0.0001]
[1743328856177,140.37210036,126.29,126.28,0.0001]
[1743328856870,140.87210036,126.29,126.28,0.0001]
[1743328857162,50.56581043,126.28,126.27,0.0001]
[1743328860985,58.48471043,126.28,126.27,0.0001]
[1743328861193,82.32471043,126.28,126.27,0.0001]
[1743328861398,81.06071043,126.28,126.27,0.0001]
[1743328866396,89.00471043,126.28,126.27,0.0001]
[1743328866688,70.35506157,126.28,126.27,0.0001]
[1743328866893,89.00471043,126.28,126.27,0.0001]
[1743328867265,55.73106157,126.28,126.27,0.0001]
[1743328867465,74.38071043,126.28,126.27,0.0001]
[1743328868996,74.41071043,126.28,126.27,0.0001]
[1743328872681,98.24071043,126.28,126.27,0.0001]
[1743328876587,106.18471043,126.28,126.27,0.0001]
[1743328879683,82.35471043,126.28,126.27,0.0001]
[1743328879881,74.41071043,126.28,126.27,0.0001]
[1743328882402,98.24071043,126.28,126.27,0.0001]
[1743328882593,126.20864886,126.27,126.26,0.0001]
[1743328882894,142.04146152,126.27,126.26,0.0001]
[1743328884293,149.96096152,126.27,126.26,0.0001]
[1743328887411,150.10312309,126.27,126.26,0.0001]
[1743328889803,150.10312309,126.27,126.19,0.063]
[1743328889804,99.444,126.23,126.19,0.063]
[1743328889983,124.79364886,126.23,126.19,0.063]
[1743328891504,0.14216157,126.22,126.19,0.063]
[1743328891999,47.81216157,126.2,126.19,0.063]
[1743328893198,74.38571043,126.2,126.19,0.063]
[1743328898309,55.5939,126.2,126.19,0.063]
[1743328898604,47.67,126.2,126.19,0.063]
[1743328900316,55.5939,126.2,126.19,0.063]
[1743328902309,47.67,126.2,126.19,0.063]
[1743328910022,47.65,126.24,126.21,1.5692]
[1743328911321,47.65,126.23,126.21,1.5692]
[1743328913613,47.65,126.22,126.21,1.5692]
[1743328916224,47.68,126.22,126.21,1.5692]
[1743328917034,0.03,126.22,126.21,1.5692]
[1743328918915,47.68,126.22,126.21,1.5692]
[1743328919920,0.03,126.22,126.21,1.5692]
[1743328921941,0.03,126.22,126.21,9.4925]
[1743328922334,0.03,126.22,126.21,1.5692]
[1743328922535,0.03,126.22,126.21,9.4925]
[1743328923335,0.03,126.22,126.21,225.5924]
[1743328923834,47.65,126.25,126.21,225.5924]
[1743328924348,47.68,126.28,126.21,225.5924]
[1743328924720,47.68,126.28,126.21,245.4006]
[1743328925333,47.65,126.27,126.22,18.64964886]
[1743328925539,47.65,126.27,126.23,1.585]
[1743328925934,0.03,126.28,126.24,6.68]
[1743328926126,0.03,126.28,126.24,229.1046]
[1743328927638,47.65,126.27,126.24,229.1046]
[1743328929855,47.68,126.28,126.24,229.1046]
[1743328930058,47.68,126.28,126.24,237.0258]
[1743328930855,0.03,126.28,126.24,237.0258]
[1743328931857,0.03,126.28,126.24,229.1046]
[1743328933969,0.03,126.28,126.24,237.026]
[1743328941250,0.03,126.28,126.25,28.13934886]
[1743328942242,0.03,126.28,126.26,0.28432314]
[1743328943267,0.03,126.28,126.27,18.64964886]
[1743328943565,0.03,126.28,126.27,234.74954886]
[1743328944454,0.03,126.28,126.27,216.0999]
[1743328945754,0.03,126.28,126.27,242.953372]
[1743328947071,0.03,126.31,126.29,135.26]
[1743328947277,0.03,126.31,126.29,222.7699]
[1743328948971,0.03,126.31,126.3,7.9176]
[1743328949476,0.03,126.31,126.3,242.921472]
[1743328949665,0.03,126.31,126.3,244.528572]
[1743328951858,0.03,126.31,126.3,243.89568438]
[1743328953179,0.03,126.31,126.3,236.610972]
[1743328953781,0.03,126.31,126.3,244.528572]
[1743328954184,0.03,126.33,126.32,18.64964886]
[1743328954384,0.03,126.33,126.32,234.68954886]
[1743328965201,0.03,126.33,126.32,242.890272]
[1743328967504,0.03,126.35,126.34,153.84964886]
[1743328971686,0.03,126.35,126.34,162.049072]
[1743328971998,0.03,126.35,126.34,154.133972]
[1743328972502,0.03,126.35,126.34,234.943872]
[1743328972680,0.03,126.35,126.34,242.858972]
[1743328973399,0.03,126.35,126.34,234.943872]
[1743328973577,0.03,126.35,126.34,242.858972]
[1743328974101,0.03,126.36,126.35,162.30279514]
[1743328974303,0.03,126.36,126.35,243.11269514]
[1743328977484,0.03,126.36,126.35,249.57039514]
[1743328978283,0.03,126.36,126.35,250.07039514]
[1743328979693,0.03,126.37,126.36,19.71829514]
[1743328979897,0.03,126.38,126.36,19.71829514]
[1743328980100,0.03,126.4,126.39,99.99819514]
[1743328982886,0.03,126.4,126.39,99.713872]
[1743328984100,0.03,126.4,126.39,107.91019514]
[1743328987789,0.03,126.4,126.39,107.625872]
[1743328990103,0.03,126.41,126.4,99.683872]
[1743328990910,0.03,126.41,126.4,107.595172]
[1743328991809,0.03,126.41,126.4,99.39954886]
[1743328992003,0.03,126.41,126.4,222.6399]
[1743328992995,0.03,126.41,126.4,241.28954886]
[1743328994407,0.03,126.41,126.4,249.20084886]
[1743328994808,0.03,126.41,126.4,241.28954886]
[1743328996016,0.03,126.41,126.4,249.20084886]
[1743328997018,0.03,126.41,126.4,241.28954886]
[1743328997915,0.03,126.41,126.4,234.56954886]
[1743328998118,0.03,126.41,126.4,241.26954886]
[1743329004928,1.5773823,126.43,126.42,153.78964886]
[1743329005116,1.5773823,126.43,126.42,234.53954886]
[1743329005834,1.5773823,126.43,126.42,215.8899]
[1743329011029,9.4868823,126.43,126.42,215.8899]
[1743329011340,9.5168823,126.43,126.42,215.8899]
[1743329015732,57.1668823,126.43,126.42,215.8899]
[1743329015912,57.1668823,126.43,126.42,80.7499]
[1743329021128,1.6073823,126.43,126.42,80.7499]
[1743329025235,1.6073823,126.43,126.42,215.8899]
[1743329026853,1.6073823,126.43,126.42,230.48]
[1743329027029,1.6073823,126.43,126.42,249.12964886]
[1743329031643,1.6073823,126.43,126.42,249.413972]
[1743329036946,0.03,126.44,126.43,133.5326177]
[1743329038254,0.03,126.44,126.43,160.09176656]
[1743329041440,0.03,126.44,126.43,241.1259897]
[1743329045759,0.03,126.48,126.44,160.06096656]
[1743329045944,0.03,126.48,126.44,240.81086656]
[1743329060360,0.03,126.48,126.44,240.87386656]
[1743329067376,0.03,126.48,126.46,18.64964886]
[1743329067582,0.03,126.48,126.46,239.56216656]
[1743329071165,0.03,126.48,126.46,247.46966656]
[1743329073988,0.03,126.48,126.46,228.8200177]
[1743329074273,0.03,126.48,126.46,220.9125177]
[1743329074650,0.03,126.48,126.46,228.8200177]
[1743329079471,0.03,126.48,126.46,214.2525177]
[1743329083962,55.5863,126.48,126.46,214.2525177]
[1743329097294,0.03,126.48,126.46,214.2525177]
[1743329101200,0.03,126.48,126.46,80.7499]
[1743329103875,55.557,126.47,126.46,80.7499]
[1743329104082,55.557,126.47,126.45,133.5026177]
[1743329104383,75.3245,126.47,126.44,0.063]
[1743329105388,75.5582,126.45,126.44,0.063]
[1743329116208,67.65,126.45,126.44,0.063]
[1743329116408,47.65,126.46,126.44,0.063]
[1743329117491,47.65,126.47,126.44,133.5656177]
[1743329118386,67.65,126.45,126.44,0.063]
[1743329119608,75.5582,126.45,126.44,0.063]
[1743329121101,75.70036157,126.45,126.44,0.063]
[1743329126430,102.28301043,126.45,126.44,0.0001]
[1743329129531,102.78301043,126.45,126.44,0.0001]
[1743329129840,141.53448825,126.45,126.44,0.0001]
[1743329130004,149.46748825,126.45,126.44,0.0001]
[1743329131626,148.96748825,126.45,126.44,0.0001]
[1743329131813,149.46748825,126.45,126.44,0.0001]
[1743329135523,90.26118297,126.45,126.44,0.0001]
[1743329135717,98.43726157,126.45,126.44,0.0001]
[1743329138315,96.89796157,126.45,126.44,0.0001]
[1743329138632,90.27336157,126.45,126.44,0.0001]
[1743329139645,75.70036157,126.45,126.44,0.0001]
[1743329140139,75.5582,126.45,126.44,0.0001]
[1743329141635,83.4912,126.45,126.44,0.0001]
[1743329145128,83.5212,126.45,126.44,0.0001]
[1743329152938,63.5212,126.45,126.44,0.0001]
[1743329153952,55.613,126.45,126.44,0.0001]
[1743329154156,47.68,126.45,126.44,0.0001]
[1743329155443,0.03,126.45,126.44,0.0001]
[1743329160961,0.03,126.45,126.44,6.2313]
[1743329163457,0.03,126.45,126.44,14.1401]
[1743329166036,0.03,126.45,126.44,149.6401]
[1743329167458,0.03,126.45,126.44,141.7313]
[1743329167654,0.03,126.45,126.44,135.5001]
[1743329171062,55.5682,126.45,126.44,135.5001]
[1743329171859,55.5682,126.45,126.44,0.0001]
[1743329172055,63.5012,126.45,126.44,0.0001]
[1743329172239,55.5682,126.45,126.44,0.0001]
[1743329172862,0.03,126.45,126.44,0.0001]
[1743329173465,55.5682,126.45,126.44,0.0001]
[1743329175966,0.03,126.45,126.44,0.0001]
[1743329176142,47.66,126.45,126.44,0.0001]
[1743329176960,0.03,126.45,126.44,0.0001]
[1743329177165,0.03,126.45,126.44,1.5482]
[1743329177555,0.03,126.45,126.44,236.44774886]
[1743329180368,0.03,126.45,126.44,244.35654886]
[1743329180743,0.03,126.46,126.45,0.28432314]
[1743329180964,0.03,126.46,126.45,7.20864628]
[1743329182349,0.03,126.46,126.45,6.64]
[1743329184370,0.03,126.46,126.45,14.5482]
[1743329185270,0.03,126.46,126.45,33.19784886]
[1743329186563,0.03,126.46,126.45,249.44774886]
[1743329192276,0.03,126.46,126.45,241.53954886]
[1743329193679,0.03,126.46,126.45,249.44774886]
[1743329194579,0.03,126.46,126.45,249.51074886]
[1743329194962,0.03,126.46,126.45,222.9529]
[1743329196688,0.03,126.46,126.45,80.8129]
[1743329196975,0.03,126.46,126.45,0.063]
[1743329197173,6.3841,126.46,126.45,0.063]
[1743329197378,54.0141,126.46,126.45,0.063]
[1743329198969,61.9217,126.46,126.45,0.063]
[1743329199169,80.57134886,126.46,126.45,0.063]
[1743329200082,82.16624886,126.46,126.45,0.063]
[1743329200291,82.16624886,126.46,126.44,0.0001]
[1743329200292,66.42181043,126.45,126.44,0.0001]
[1743329201395,74.33001043,126.45,126.44,0.0001]
[1743329204311,55.5382,126.45,126.44,0.0001]
[1743329218398,55.5682,126.45,126.44,0.0001]
[1743329225052,0.03,126.45,126.44,0.0001]
[1743329225330,0.03,126.45,126.44,135.5001]
[1743329225834,0.03,126.45,126.44,142.1601]
[1743329226620,0.03,126.45,126.44,150.0689]
[1743329226824,0.03,126.45,126.44,142.1601]
[1743329227018,47.66,126.45,126.44,135.5001]
[1743329228137,0.03,126.45,126.44,135.5001]
[1743329230517,0.03,126.45,126.44,0.0001]
[1743329236444,0.03,126.45,126.44,135.5001]
[1743329239547,0.03,126.45,126.44,143.4089]
[1743329243452,0.03,126.45,126.44,162.05854886]
[1743329244542,0.03,126.45,126.44,143.4089]
[1743329244733,0.03,126.45,126.44,162.05854886]
[1743329245955,0.03,126.45,126.44,242.80844886]
[1743329249751,0.03,126.45,126.44,243.092772]
[1743329259866,0.03,126.45,126.44,216.25]
[1743329270468,0.03,126.45,126.44,80.75]
[1743329277784,0.03,126.45,126.44,244.730972]
[1743329277970,0.03,126.45,126.44,245.01529514]
[1743329281080,0.03,126.45,126.44,244.730972]
[1743329286970,0.03,126.45,126.44,216.25]
[1743329287282,0.03,126.45,126.44,222.89]
[1743329287601,0.03,126.45,126.44,230.7988]
[1743329289301,0.03,126.45,126.44,249.44844886]
[1743329291900,0.03,126.45,126.44,222.89]
[1743329292721,0.03,126.45,126.44,216.25]
[1743329292905,47.66,126.45,126.44,0.0001]
[1743329293995,55.5682,126.45,126.44,0.0001]
[1743329302687,0.03,126.45,126.44,0.0001]
[1743329303997,0.03,126.45,126.44,135.5001]
[1743329313347,55.5663,126.48,126.44,135.5001]
[1743329313348,0.03,126.48,126.47,18.64964886]
[1743329313538,0.03,126.48,126.47,241.803872]
[1743329314044,0.03,126.48,126.47,243.58819514]
[1743329314234,0.03,126.48,126.47,247.48150954]
[1743329314413,0.03,126.48,126.47,257.06064294]
[1743329314816,0.03,126.48,126.47,264.96764294]
[1743329315247,0.03,126.48,126.47,261.07432854]
[1743329318143,0.03,126.48,126.47,261.57432854]
[1743329321048,0.03,126.48,126.47,261.07432854]
[1743329321226,0.03,126.48,126.47,261.57432854]
[1743329321426,0.03,126.53,126.5,18.64964886]
[1743329321722,0.03,126.53,126.51,6.66]
[1743329322546,0.03,126.53,126.51,14.5643]
[1743329327254,0.03,126.53,126.52,18.64964886]
[1743329328452,0.03,126.53,126.52,26.55344886]
[1743329328751,0.03,126.53,126.51,230.7241]
[1743329328962,0.03,126.56,126.54,135.35]
[1743329329257,0.03,126.56,126.55,25.34964886]
[1743329329551,0.03,126.56,126.55,241.44954886]
[1743329330654,0.03,126.56,126.55,249.35154886]
[1743329337065,0.03,126.56,126.55,230.7019]
[1743329337264,0.03,126.56,126.55,249.35154886]
[1743329341806,0.03,126.56,126.55,249.635872]
[1743329342692,0.03,126.56,126.55,222.7999]
[1743329343096,0.03,126.56,126.55,80.7499]
[1743329347985,0.03,126.56,126.52,135.35]
[1743329348280,47.63,126.54,126.52,135.35]
[1743329349276,55.532,126.55,126.52,135.35]
[1743329350696,47.63,126.55,126.52,135.35]
[1743329350900,47.63,126.55,126.52,135.413]
[1743329351696,47.66,126.56,126.52,135.413]
[1743329352003,47.66,126.56,126.52,143.3167]
[1743329352895,0.03,126.56,126.52,143.3167]
[1743329353100,47.66,126.56,126.52,143.3167]
[1743329353783,47.66,126.56,126.52,224.0666]
[1743329353975,0.03,126.56,126.52,224.0666]
[1743329358605,0.03,126.56,126.52,243.8263]
[1743329363710,0.03,126.56,126.53,18.933972]
[1743329364024,0.03,126.56,126.54,6.68]
[1743329364212,0.03,126.56,126.55,7.902]
[1743329364386,0.03,126.56,126.55,143.252]
[1743329366298,0.03,126.56,126.55,242.65154886]
[1743329370795,0.03,126.56,126.55,216.0999]
[1743329371714,0.03,126.56,126.54,135.35]
[1743329371911,20.03,126.56,126.54,135.35]
[1743329372090,47.63,126.55,126.52,135.413]
[1743329372601,47.13,126.55,126.52,135.413]
[1743329373108,46.63,126.55,126.52,135.413]
[1743329377515,46.63,126.55,126.52,143.3168]
[1743329378014,46.63,126.55,126.52,135.413]
[1743329378397,46.63,126.55,126.52,143.3168]
[1743329378920,46.66,126.56,126.52,143.3168]
[1743329379519,54.5613,126.56,126.52,143.3168]
[1743329381015,46.66,126.56,126.52,143.3168]
[1743329381325,46.63,126.55,126.52,143.3168]
[1743329382203,0.03,126.56,126.52,143.3168]
[1743329384310,0.03,126.56,126.52,163.0765]
[1743329384612,0.03,126.56,126.53,18.64964886]
[1743329386417,0.03,126.56,126.54,7.9026]
[1743329386818,0.03,126.56,126.54,14.5626]
[1743329389016,0.03,126.56,126.54,149.9126]
[1743329391631,0.03,126.56,126.54,149.9756]
[1743329394736,0.03,126.56,126.54,230.7255]
[1743329396034,0.03,126.56,126.55,26.55164886]
[1743329396214,0.03,126.56,126.55,242.65154886]
[1743329398535,0.03,126.56,126.55,242.935872]
[1743329399433,0.03,126.56,126.55,243.22019514]
[1743329400752,0.03,126.57,126.56,135.60432314]
[1743329400935,0.03,126.57,126.56,137.23422314]
[1743329402129,0.03,126.57,126.56,217.98412314]
[1743329402935,0.03,126.57,126.56,244.81939514]
[1743329407643,6.057,126.63,126.58,135.26]
[1743329407822,6.057,126.63,126.59,6.64]
[1743329408944,6.057,126.63,126.6,7.8988]
[1743329411234,47.63,126.64,126.6,7.8988]
[1743329412352,55.5266,126.64,126.6,135.26]
[1743329412739,47.63,126.64,126.6,135.26]
[1743329413346,47.63,126.64,126.6,143.1587]
[1743329416135,47.66,126.64,126.6,143.1587]
[1743329418842,55.5564,126.64,126.6,143.1587]
[1743329421659,0.03,126.64,126.6,143.1587]
[1743329424070,0.03,126.64,126.6,223.9086]
[1743329426356,0.03,126.64,126.61,18.64964886]
[1743329426556,0.03,126.64,126.61,234.65954886]
[1743329426755,0.03,126.64,126.62,0.56864628]
[1743329427057,0.03,126.64,126.63,6.92432314]
[1743329427357,0.03,126.66,126.65,18.64964886]
[1743329427656,0.03,126.66,126.65,234.62954886]
[1743329427844,0.03,126.66,126.65,215.9799]
[1743329428244,0.03,126.64,126.63,6.64]
[1743329432864,0.03,126.64,126.63,141.87]
[1743329440454,0.03,126.64,126.63,141.933]
[1743329441561,0.03,126.64,126.63,135.293]
[1743329444574,67.66,126.64,126.63,0.063]
[1743329445551,75.5563,126.64,126.63,0.063]
[1743329448371,75.69846157,126.64,126.63,0.063]
[1743329450180,75.5563,126.64,126.63,0.063]
[1743329466308,0.03,126.64,126.63,216.0429]
[1743329466476,0.03,126.64,126.63,236.31184886]
[1743329466807,0.03,126.64,126.63,236.596172]
[1743329467305,0.03,126.64,126.63,236.31184886]
[1743329468191,0.03,126.64,126.63,244.20884886]
[1743329471073,0.03,126.64,126.63,217.6622]
[1743329471591,0.03,126.64,126.63,216.0429]
[1743329471796,47.56,126.64,126.63,0.063]
[1743329472868,0.03,126.64,126.63,0.063]
[1743329476908,0.03,126.64,126.63,135.293]
[1743329486486,0.03,126.64,126.63,143.19]
[1743329488401,0.03,126.64,126.63,135.293]
[1743329493112,0.03,126.64,126.63,136.8447]
[1743329497115,0.03,126.64,126.63,144.7417]
[1743329513029,0.03,126.64,126.63,135.293]
[1743329513206,67.56,126.64,126.63,0.063]
[1743329514829,0.03,126.64,126.63,0.063]
[1743329517444,67.56,126.64,126.63,0.063]
[1743329518743,75.4563,126.64,126.63,0.063]
[1743329522345,67.56,126.64,126.63,0.063]
[1743329527956,47.56,126.64,126.63,0.063]
[1743329535877,0.03,126.64,126.63,135.293]
[1743329537178,0.03,126.64,126.63,153.94264886]
[1743329537974,0.03,126.64,126.63,161.83964886]
[1743329538677,0.03,126.64,126.63,242.873872]
[1743329543070,0.03,126.64,126.63,0.063]
[1743329570798,0.03,126.64,126.63,135.293]
[1743329577374,0.03,126.64,126.63,143.19]
[1743329579503,0.03,126.64,126.63,135.293]
[1743329580096,0.03,126.64,126.63,143.19]
[1743329580303,0.03,126.64,126.63,242.58954886]
[1743329582796,0.03,126.64,126.63,223.9399]
[1743329583117,0.03,126.64,126.63,242.58954886]
[1743329585389,0.03,126.64,126.63,243.15819514]
[1743329587915,0.03,126.64,126.63,242.873872]
[1743329588115,0.03,126.64,126.63,234.69254886]